{"text_format":"1","workbook":"xlsx","n_sheets":5,"sheets":["meal plan","ingredients","recipes","shopping","calculations"],"not_rendered":{"charts":0,"images":0,"macros":1,"external_links":0,"defined_names":20,"comments":0,"pivot_tables":1},"unopened":[],"bounds":{"document_bytes":16777216,"sheet_cells":100000,"rows_first":2000,"rows_last":500,"rows_between":2000,"halvings":0,"cell_chars":16384,"cell_head_chars":4096},"cells_cut":0,"cells_raw":0,"read":"whole","date_system":"1900"}

{"sheet":"meal plan","index":0,"n_rows":25,"n_cols":6,"rows_kept":25,"cut":false,"hidden":false,"merged":[]}
[]
[null,"Monthly Meal Planner"]
[]
[]
[null,"DATE","SERVES","MAIN DISH","SIDE DISH 1","SIDE DISH 2"]
[null,"2012-10-01",4,"Nachos Grande"]
[null,"2012-10-02",4,"Aloha Chicken","Sticky White Rice"]
[null,"2012-10-03",4,"Grilled Italian Chicken","Pesto Couscous","Sautéed Summer Squash & Zucchini"]
[null,"2012-10-04",4,"Shish Kebabs","Sticky White Rice","Grilled Melon with Honey-Mint Sauce"]
[null,"2012-10-05",4,"Brown Sugar & Spice Rubbed Baby Back Ribs","Seasoned French Fries","Coleslaw"]
[null,"2012-10-06",4,"Beef and Mushroom Skillet Supper "]
[null,"2012-10-07",2,"Shrimp Fettuccini Pasta","Berries & Lemon Curd"]
[null,"2012-10-08",2,"Nachos Grande"]
[null,"2012-10-09",4,"Aloha Chicken","Sticky White Rice"]
[null,"2012-10-10",4,"Grilled Italian Chicken","Pesto Couscous","Sautéed Summer Squash & Zucchini"]
[null,"2012-10-11",4,"Shish Kebabs","Sticky White Rice","Grilled Melon with Honey-Mint Sauce"]
[null,"2012-10-12",4,"Brown Sugar & Spice Rubbed Baby Back Ribs","Seasoned French Fries","Beef and Mushroom Skillet Supper "]
[null,"2012-10-13",4,"Beef and Mushroom Skillet Supper "]
[null,"2012-10-14",8,"Shrimp Fettuccini Pasta","Berries & Lemon Curd"]
[null,"2012-10-15",4,"Nachos Grande"]
[null,"2012-10-16",4,"Aloha Chicken","Sticky White Rice"]
[null,"2012-10-17",4,"Grilled Italian Chicken","Pesto Couscous","Sautéed Summer Squash & Zucchini"]
[null,"2012-10-18",4,"Shish Kebabs","Sticky White Rice","Grilled Melon with Honey-Mint Sauce"]
[null,"2012-10-19",6,"Brown Sugar & Spice Rubbed Baby Back Ribs","Seasoned French Fries","Coleslaw"]
[null,"2012-10-20",4,"Beef and Mushroom Skillet Supper "]

{"sheet":"ingredients","index":1,"n_rows":79,"n_cols":5,"rows_kept":79,"cut":false,"hidden":false,"merged":[]}
[]
[null,"Monthly Meal Planner"]
[]
[]
[null,"DISH","AMOUNT","UNIT","INGREDIENT"]
[null,"Nachos Grande",1,"lb","Ground Beef"]
[null,"Nachos Grande",0.25,"cups","Finely Chopped Onion"]
[null,"Nachos Grande",1,"1.25 oz packet","Taco Seasoning"]
[null,"Nachos Grande",0.5,"16 oz can","Refried Beans or Black Beans"]
[null,"Nachos Grande",1,"9 oz bag","Corn Chips"]
[null,"Nachos Grande",4,"cups","Cheese, Shredded"]
[null,"Nachos Grande",1,"cups","Sour Cream"]
[null,"Nachos Grande",1.5,"cups","Salsa"]
[null,"Nachos Grande",0.5,"cups","Corn, Heated"]
[null,"Nachos Grande",0.5,"pepper","Green Pepper, Diced"]
[null,"Nachos Grande",1,"avocado","Avocado, Diced"]
[null,"Nachos Grande",2,"3 oz can","Sliced Black Olives"]
[null,"Aloha Chicken",4,"breast","Boneless, Skinless Chicken Breasts"]
[null,"Aloha Chicken",1,"flour","Flour"]
[null,"Aloha Chicken",1,"oil","Oil"]
[null,"Aloha Chicken",1,"16 oz can","Can Pineapple Chunks"]
[null,"Aloha Chicken",1,"tsp","Cornstarch"]
[null,"Aloha Chicken",1,"T","Honey"]
[null,"Aloha Chicken",1,"T","Teriyaki Sauce"]
[null,"Aloha Chicken",1,"T","Soy Sauce"]
[null,"Aloha Chicken",0.25,"tsp","Pepper"]
[null,"Sticky White Rice",1,"cups","Uncooked White Rice"]
[null,"Sticky White Rice",0.5,"T","Butter"]
[null,"Grilled Italian Chicken",2,"breast","Boneless, Skinless Chicken Breasts"]
[null,"Grilled Italian Chicken",1,"16 oz bottle","Italian Dressing"]
[null,"Pesto Couscous",2,"cups","Water"]
[null,"Pesto Couscous",0.5,"T","Butter"]
[null,"Pesto Couscous",1,"tsp","Salt"]
[null,"Pesto Couscous",0.5,"T","Olive Oil"]
[null,"Pesto Couscous",0.5,"cups","Couscous"]
[null,"Pesto Couscous",0.25,"cups","Grated Parmesan Cheese"]
[null,"Pesto Couscous",0.25,"cups","Fresh Basil, Coarsely Chopped"]
[null,"Pesto Couscous",0.25,"cups","Toasted Pine Nuts"]
[null,"Sautéed Summer Squash & Zucchini",3,"T","Olive Oil"]
[null,"Sautéed Summer Squash & Zucchini",3,"cups","Squash, Sliced (Green and Yellow)"]
[null,"Sautéed Summer Squash & Zucchini",1,"cups","Fresh Tomatoes, Chopped"]
[null,"Sautéed Summer Squash & Zucchini",0.25,"cups","Onion, Diced"]
[null,"Sautéed Summer Squash & Zucchini",2,"cloves","Garlic, Minced"]
[null,"Shish Kebabs",1,"lb","Steak, Chicken or Pork"]
[null,"Shish Kebabs",1,"sm","Onion"]
[null,"Shish Kebabs",2,"pepper","Bell Peppers"]
[null,"Shish Kebabs",1,"8 oz pkg","Whole Mushrooms"]
[null,"Shish Kebabs",1,"pt","Cherry Tomatoes"]
[null,"Shish Kebabs",1,"can","Pineapple Chunks, Drained"]
[null,"Grilled Melon with Honey-Mint Sauce",1,"cantaloupe","Cantaloupe"]
[null,"Grilled Melon with Honey-Mint Sauce",0.25,"cups","Honey"]
[null,"Grilled Melon with Honey-Mint Sauce",0.25,"cups","Fresh Mint Leaves, Loosely Packed"]
[null,"Grilled Melon with Honey-Mint Sauce",0.25,"cups","Water"]
[null,"Grilled Melon with Honey-Mint Sauce",1,"pt","Ice Cream (Optional)"]
[null,"Brown Sugar & Spice Rubbed Baby Back Ribs",4,"racks","Pork Baby Back Ribs (1 1/4 Lbs.)"]
[null,"Brown Sugar & Spice Rubbed Baby Back Ribs",1,"16 oz bottle","Italian Dressing"]
[null,"Brown Sugar & Spice Rubbed Baby Back Ribs",6,"tsp","Garlic Powder"]
[null,"Brown Sugar & Spice Rubbed Baby Back Ribs",6,"tsp","Chili Powder"]
[null,"Brown Sugar & Spice Rubbed Baby Back Ribs",4,"tsp","Dark Brown Sugar"]
[null,"Brown Sugar & Spice Rubbed Baby Back Ribs",1,"bottle","BBQ Sauce Of Choice"]
[null,"Seasoned French Fries",1,"bag","Seasoned French Fries"]
[null,"Coleslaw",1,"container","Coleslaw"]
[null,"Beef and Mushroom Skillet Supper ",1,"T","Olive Oil"]
[null,"Beef and Mushroom Skillet Supper ",1.5,"lb","Ground Beef"]
[null,"Beef and Mushroom Skillet Supper ",8,"large","Portobello Mushrooms"]
[null,"Beef and Mushroom Skillet Supper ",1,"sm","Onion"]
[null,"Beef and Mushroom Skillet Supper ",2,"can","Cream of Mushroom Soup"]
[null,"Beef and Mushroom Skillet Supper ",2,"tsp","Worcestershire Sauce"]
[null,"Beef and Mushroom Skillet Supper ",4,"oz","Sour Cream"]
[null,"Beef and Mushroom Skillet Supper ",1,"bag","Egg Noodles"]
[null,"Beef and Mushroom Skillet Supper ",2,"crown","Broccoli"]
[null,"Shrimp Fettuccini Pasta",0.5,"lb","Fettuccini Pasta"]
[null,"Shrimp Fettuccini Pasta","1 T","T","Butter"]
[null,"Shrimp Fettuccini Pasta",0.5,"lb","Cooked Shrimp"]
[null,"Shrimp Fettuccini Pasta",1,"cups","Half And Half"]
[null,"Shrimp Fettuccini Pasta",6,"T","Grated Parmesan Cheese"]
[null,"Berries & Lemon Curd",1,"pkg","Black Berries"]
[null,"Berries & Lemon Curd",1,"pkg","Strawberries"]
[null,"Berries & Lemon Curd",1,"jar","Lemon Curd"]

{"sheet":"recipes","index":2,"n_rows":19,"n_cols":5,"rows_kept":19,"cut":false,"hidden":false,"merged":[]}
[]
[null,"Monthly Meal Planner"]
[]
[]
[null,"MAIN/SIDE","DISH","SERVES","RECIPE LINK"]
[null,"Main","Nachos Grande",4]
[null,"Main","Aloha Chicken",4]
[null,"Side","Sticky White Rice",4]
[null,"Main","Grilled Italian Chicken",2]
[null,"Side","Pesto Couscous",8]
[null,"Side","Sautéed Summer Squash & Zucchini",4]
[null,"Main","Shish Kebabs",4]
[null,"Side","Grilled Melon with Honey-Mint Sauce",4]
[null,"Main","Brown Sugar & Spice Rubbed Baby Back Ribs",4]
[null,"Side","Seasoned French Fries",4]
[null,"Side","Coleslaw",4]
[null,"Main","Beef and Mushroom Skillet Supper ",4]
[null,"Main","Shrimp Fettuccini Pasta",4]
[null,"Side","Berries & Lemon Curd",4]

{"sheet":"shopping","index":3,"n_rows":70,"n_cols":8,"rows_kept":70,"cut":false,"hidden":false,"merged":[[17,5,17,7],[18,5,18,7],[19,5,19,7],[20,5,20,7],[11,5,11,7],[12,5,12,7],[13,5,13,7],[14,5,14,7],[15,5,15,7],[16,5,16,7],[10,5,10,7],[5,5,5,7],[6,5,6,7],[7,5,7,7],[8,5,8,7],[9,5,9,7]]}
[]
[null,"Monthly Meal Planner"]
[null,null,null,null,null,null,"Start Date: ","2012-10-01"]
[]
[null,"INGREDIENT","UNIT","QUANTITY",null,"NOTES"]
[null,"Avocado, Diced","avocado",2]
[null,"BBQ Sauce Of Choice","bottle",1]
[null,"Bell Peppers","pepper",2]
[null,"Black Berries","pkg",1]
[null,"Boneless, Skinless Chicken Breasts","breast",6]
[null,"Broccoli","crown",2]
[null,"Butter","T",1.5]
[null,"Can Pineapple Chunks","16 oz can",1]
[null,"Cantaloupe","cantaloupe",1]
[null,"Cheese, Shredded","cups",8]
[null,"Cherry Tomatoes","pt",1]
[null,"Chili Powder","tsp",6]
[null,"Coleslaw","container",1]
[null,"Cooked Shrimp","lb",0.5]
[null,"Corn Chips","9 oz bag",2]
[null,"Corn, Heated","cups",1]
[null,"Cornstarch","tsp",1]
[null,"Couscous","cups",0.5]
[null,"Cream of Mushroom Soup","can",2]
[null,"Dark Brown Sugar","tsp",4]
[null,"Egg Noodles","bag",1]
[null,"Fettuccini Pasta","lb",0.5]
[null,"Finely Chopped Onion","cups",0.5]
[null,"Flour","flour",1]
[null,"Fresh Basil, Coarsely Chopped","cups",0.25]
[null,"Fresh Mint Leaves, Loosely Packed","cups",0.25]
[null,"Fresh Tomatoes, Chopped","cups",1]
[null,"Garlic Powder","tsp",6]
[null,"Garlic, Minced","cloves",2]
[null,"Grated Parmesan Cheese","cups",0.25]
[null,"Grated Parmesan Cheese","T",6]
[null,"Green Pepper, Diced","pepper",1]
[null,"Ground Beef","lb",3.5]
[null,"Half And Half","cups",1]
[null,"Honey","cups",0.25]
[null,"Honey","T",1]
[null,"Ice Cream (Optional)","pt",1]
[null,"Italian Dressing","16 oz bottle",2]
[null,"Lemon Curd","jar",1]
[null,"Oil","oil",1]
[null,"Olive Oil","T",4.5]
[null,"Onion","sm",2]
[null,"Onion, Diced","cups",0.25]
[null,"Pepper","tsp",0.25]
[null,"Pineapple Chunks, Drained","can",1]
[null,"Pork Baby Back Ribs (1 1/4 Lbs.)","racks",4]
[null,"Portobello Mushrooms","large",8]
[null,"Refried Beans or Black Beans","16 oz can",1]
[null,"Salsa","cups",3]
[null,"Salt","tsp",1]
[null,"Seasoned French Fries","bag",1]
[null,"Sliced Black Olives","3 oz can",4]
[null,"Sour Cream","cups",2]
[null,"Sour Cream","oz",4]
[null,"Soy Sauce","T",1]
[null,"Squash, Sliced (Green and Yellow)","cups",3]
[null,"Steak, Chicken or Pork","lb",1]
[null,"Strawberries","pkg",1]
[null,"Taco Seasoning","1.25 oz packet",2]
[null,"Teriyaki Sauce","T",1]
[null,"Toasted Pine Nuts","cups",0.25]
[null,"Uncooked White Rice","cups",2]
[null,"Water","cups",2.25]
[null,"Whole Mushrooms","8 oz pkg",1]
[null,"Worcestershire Sauce","tsp",2]

{"sheet":"calculations","index":4,"n_rows":96,"n_cols":37,"rows_kept":96,"cut":false,"hidden":true,"merged":[]}
[null,null,null,null,null,null,null,null,null,null,null,null,null,null,null,null,null,null,null,null,null,null,null,null,null,null,null,null,null,null,null,null,null,"Dish"]
["*** This sheet to remain HIDDEN ***",null,null,null,null,null,null,null,null,null,null,null,null,null,null,null,null,null,null,null,null,null,null,null,null,null,null,null,null,null,null,null,null,"Nachos Grande"]
[null,null,null,null,null,null,null,"Date","Date",null,null,null,null,null,null,null,null,"Dish",null,"MAIN/SIDE","DISH","SERVES","RECIPE LINK"]
[null,null,null,null,null,null,null,">=10/01/2012","<=10/08/2012",null,null,null,null,null,null,null,4,"Shish Kebabs",null,"Main","Nachos Grande",4]
[null,null,null,null,null,null,null,null,null,null,null,null,null,null,null,null,4,"Sticky White Rice",null,"Main","Aloha Chicken",4]
[null,null,null,null,null,null,null,null,null,null,null,null,null,null,null,null,4,"Grilled Melon with Honey-Mint Sauce",null,"Side","Sticky White Rice",4]
[null,null,null,null,null,null,null,null,null,null,null,null,null,null,null,null,4,"Brown Sugar & Spice Rubbed Baby Back Ribs",null,"Main","Grilled Italian Chicken",2]
[null,null,null,null,null,null,null,"DATE","SERVES","MAIN DISH","SIDE DISH 1","SIDE DISH 2",null,null,null,null,4,"Seasoned French Fries",null,"Side","Pesto Couscous",8,null,null,"Multiplier","DISH","AMOUNT","UNIT","INGREDIENT",null,null,null,null,"DISH","AMOUNT","UNIT","INGREDIENT"]
[null,null,null,null,null,null,null,"2012-10-01",4,"Nachos Grande",null,null,null,null,null,null,4,"Cole Slaw",null,"Side","Sautéed Summer Squash & Zucchini",4,null,null,{"$f":"MultiplierFormula","v":1},"Nachos Grande",1,"lb","Ground Beef",null,null,null,null,"Nachos Grande",1,"lb","Ground Beef"]
[null,null,null,null,null,null,null,"2012-10-02",4,"Aloha Chicken","Sticky White Rice",null,null,null,null,null,4,"Beef and Mushroom Skillet Supper ",null,"Main","Shish Kebabs",4,null,null,{"$f":"MultiplierFormula","v":1},"Nachos Grande",0.25,"cups","Finely Chopped Onion",null,null,null,null,"Nachos Grande",0.25,"cups","Finely Chopped Onion"]
[null,null,null,null,null,null,null,"2012-10-03",4,"Grilled Italian Chicken","Pesto Couscous","Sautéed Summer Squash & Zucchini",null,null,null,null,4,"Shrimp Fettucini Pasta",null,"Side","Grilled Melon with Honey-Mint Sauce",4,null,null,{"$f":"MultiplierFormula","v":1},"Nachos Grande",1,"1.25 oz packet","Taco Seasoning",null,null,null,null,"Nachos Grande",1,"1.25 oz packet","Taco Seasoning"]
[null,null,null,null,null,null,null,"2012-10-04",4,"Shish Kebabs","Sticky White Rice","Grilled Melon with Honey-Mint Sauce",null,null,null,null,4,"Berries & Lemon Curd",null,"Main","Brown Sugar & Spice Rubbed Baby Back Ribs",4,null,null,{"$f":"MultiplierFormula","v":1},"Nachos Grande",0.5,"16 oz can","Refried Beans or Black Beans",null,null,null,null,"Nachos Grande",0.5,"16 oz can","Refried Beans or Black Beans"]
[null,null,null,null,null,null,null,"2012-10-05",4,"Brown Sugar & Spice Rubbed Baby Back Ribs","Seasoned French Fries","Coleslaw",null,null,null,null,4,"Nachos Grande",null,"Side","Seasoned French Fries",4,null,null,{"$f":"MultiplierFormula","v":1},"Nachos Grande",1,"9 oz bag","Corn Chips",null,null,null,null,"Nachos Grande",1,"9 oz bag","Corn Chips"]
[null,null,null,null,null,null,null,"2012-10-06",4,"Beef and Mushroom Skillet Supper ",null,null,null,null,null,null,4,"Nachos Grande",null,"Side","Coleslaw",4,null,null,{"$f":"MultiplierFormula","v":1},"Nachos Grande",4,"cups","Cheese, Shredded",null,null,null,null,"Nachos Grande",4,"cups","Cheese, Shredded"]
[null,null,null,null,null,null,null,"2012-10-07",2,"Shrimp Fettuccini Pasta","Berries & Lemon Curd",null,null,null,null,null,4,"Sticky White Rice",null,"Main","Beef and Mushroom Skillet Supper ",4,null,null,{"$f":"MultiplierFormula","v":1},"Nachos Grande",1,"cups","Sour Cream",null,null,null,null,"Nachos Grande",1,"cups","Sour Cream"]
[null,null,null,null,null,null,null,"2012-10-08",2,"Nachos Grande",null,null,null,null,null,null,4,"Nachos Grande",null,"Main","Shrimp Fettuccini Pasta",4,null,null,{"$f":"MultiplierFormula","v":1},"Nachos Grande",1.5,"cups","Salsa",null,null,null,null,"Nachos Grande",1.5,"cups","Salsa"]
[null,null,null,null,null,null,null,null,null,null,null,null,null,null,null,null,4,"Pesto Couscous",null,"Side","Berries & Lemon Curd",4,null,null,{"$f":"MultiplierFormula","v":1},"Nachos Grande",0.5,"cups","Corn, Heated",null,null,null,null,"Nachos Grande",0.5,"cups","Corn, Heated"]
[null,null,null,null,null,null,null,null,null,null,null,null,null,null,null,null,4,"Sauteed Summer Squash & Zucchini",null,null,null,null,null,null,{"$f":"MultiplierFormula","v":1},"Nachos Grande",0.5,"pepper","Green Pepper, Diced",null,null,null,null,"Nachos Grande",0.5,"pepper","Green Pepper, Diced"]
[null,null,null,null,null,null,null,null,null,null,null,null,null,null,null,null,null,null,null,null,null,null,null,null,{"$f":"MultiplierFormula","v":1},"Nachos Grande",1,"avocado","Avocado, Diced",null,null,null,null,"Nachos Grande",1,"avocado","Avocado, Diced"]
[null,null,null,null,null,null,null,null,null,null,null,null,null,null,null,null,null,null,null,null,null,null,null,null,{"$f":"MultiplierFormula","v":1},"Nachos Grande",2,"3 oz can","Sliced Black Olives",null,null,null,null,"Nachos Grande",2,"3 oz can","Sliced Black Olives"]
[null,null,null,null,null,null,null,null,null,null,null,null,null,null,null,null,null,null,null,null,null,null,null,null,{"$f":"MultiplierFormula","v":{"$error":"#N/A"}},"Aloha Chicken",4,"breast","Boneless, Skinless Chicken Breasts"]
[null,null,null,null,null,null,null,null,null,null,null,null,null,null,null,null,null,null,null,null,null,null,null,null,{"$f":"MultiplierFormula","v":{"$error":"#N/A"}},"Aloha Chicken",1,"flour","Flour"]
[null,null,null,null,null,null,null,null,null,null,null,null,null,null,null,null,null,null,null,null,null,null,null,null,{"$f":"MultiplierFormula","v":{"$error":"#N/A"}},"Aloha Chicken",1,"oil","Oil"]
[null,null,null,null,null,null,null,null,null,null,null,null,null,null,null,null,null,null,null,null,null,null,null,null,{"$f":"MultiplierFormula","v":{"$error":"#N/A"}},"Aloha Chicken",1,"16 oz can","Can Pineapple Chunks"]
[null,null,null,null,null,null,null,null,null,null,null,null,null,null,null,null,null,null,null,null,null,null,null,null,{"$f":"MultiplierFormula","v":{"$error":"#N/A"}},"Aloha Chicken",1,"tsp","Cornstarch"]
[null,null,null,null,null,null,null,null,null,null,null,null,null,null,null,null,null,null,null,null,null,null,null,null,{"$f":"MultiplierFormula","v":{"$error":"#N/A"}},"Aloha Chicken",1,"T","Honey"]
[null,null,null,null,null,null,null,null,null,null,null,null,null,null,null,null,null,null,null,null,null,null,null,null,{"$f":"MultiplierFormula","v":{"$error":"#N/A"}},"Aloha Chicken",1,"T","Teriyaki Sauce"]
[null,null,null,null,null,null,null,null,null,null,null,null,null,null,null,null,null,null,null,null,null,null,null,null,{"$f":"MultiplierFormula","v":{"$error":"#N/A"}},"Aloha Chicken",1,"T","Soy Sauce"]
[null,null,null,null,null,null,null,null,null,null,null,null,null,null,null,null,null,null,null,null,null,null,null,null,{"$f":"MultiplierFormula","v":{"$error":"#N/A"}},"Aloha Chicken",0.25,"tsp","Pepper"]
[null,null,null,null,null,null,null,null,null,null,null,null,null,null,null,null,null,null,null,null,null,null,null,null,{"$f":"MultiplierFormula","v":1},"Sticky White Rice",1,"cups","Uncooked White Rice"]
[null,null,null,null,null,null,null,null,null,null,null,null,null,null,null,null,null,null,null,null,null,null,null,null,{"$f":"MultiplierFormula","v":1},"Sticky White Rice",0.5,"T","Butter"]
[null,null,null,null,null,null,null,null,null,null,null,null,null,null,null,null,null,null,null,null,null,null,null,null,{"$f":"MultiplierFormula","v":{"$error":"#N/A"}},"Grilled Italian Chicken",2,"breast","Boneless, Skinless Chicken Breasts"]
[null,null,null,null,null,null,null,null,null,null,null,null,null,null,null,null,null,null,null,null,null,null,null,null,{"$f":"MultiplierFormula","v":{"$error":"#N/A"}},"Grilled Italian Chicken",1,"16 oz bottle","Italian Dressing"]
[null,null,null,null,null,null,null,null,null,null,null,null,null,null,null,null,null,null,null,null,null,null,null,null,{"$f":"MultiplierFormula","v":0.5},"Pesto Couscous",2,"cups","Water"]
[null,null,null,null,null,null,null,null,null,null,null,null,null,null,null,null,null,null,null,null,null,null,null,null,{"$f":"MultiplierFormula","v":0.5},"Pesto Couscous",0.5,"T","Butter"]
[null,null,null,null,null,null,null,null,null,null,null,null,null,null,null,null,null,null,null,null,null,null,null,null,{"$f":"MultiplierFormula","v":0.5},"Pesto Couscous",1,"tsp","Salt"]
[null,null,null,null,null,null,null,null,null,null,null,null,null,null,null,null,null,null,null,null,null,null,null,null,{"$f":"MultiplierFormula","v":0.5},"Pesto Couscous",0.5,"T","Olive Oil"]
[null,null,null,null,null,null,null,null,null,null,null,null,null,null,null,null,null,null,null,null,null,null,null,null,{"$f":"MultiplierFormula","v":0.5},"Pesto Couscous",0.5,"cups","Couscous"]
[null,null,null,null,null,null,null,null,null,null,null,null,null,null,null,null,null,null,null,null,null,null,null,null,{"$f":"MultiplierFormula","v":0.5},"Pesto Couscous",0.25,"cups","Grated Parmesan Cheese"]
[null,null,null,null,null,null,null,null,null,null,null,null,null,null,null,null,null,null,null,null,null,null,null,null,{"$f":"MultiplierFormula","v":0.5},"Pesto Couscous",0.25,"cups","Fresh Basil, Coarsely Chopped"]
[null,null,null,null,null,null,null,null,null,null,null,null,null,null,null,null,null,null,null,null,null,null,null,null,{"$f":"MultiplierFormula","v":0.5},"Pesto Couscous",0.25,"cups","Toasted Pine Nuts"]
[null,null,null,null,null,null,null,null,null,null,null,null,null,null,null,null,null,null,null,null,null,null,null,null,{"$f":"MultiplierFormula","v":{"$error":"#N/A"}},"Sautéed Summer Squash & Zucchini",3,"T","Olive Oil"]
[null,null,null,null,null,null,null,null,null,null,null,null,null,null,null,null,null,null,null,null,null,null,null,null,{"$f":"MultiplierFormula","v":{"$error":"#N/A"}},"Sautéed Summer Squash & Zucchini",3,"cups","Squash, Sliced (Green and Yellow)"]
[null,null,null,null,null,null,null,null,null,null,null,null,null,null,null,null,null,null,null,null,null,null,null,null,{"$f":"MultiplierFormula","v":{"$error":"#N/A"}},"Sautéed Summer Squash & Zucchini",1,"cups","Fresh Tomatoes, Chopped"]
[null,null,null,null,null,null,null,null,null,null,null,null,null,null,null,null,null,null,null,null,null,null,null,null,{"$f":"MultiplierFormula","v":{"$error":"#N/A"}},"Sautéed Summer Squash & Zucchini",0.25,"cups","Onion, Diced"]
[null,null,null,null,null,null,null,null,null,null,null,null,null,null,null,null,null,null,null,null,null,null,null,null,{"$f":"MultiplierFormula","v":{"$error":"#N/A"}},"Sautéed Summer Squash & Zucchini",2,"cloves","Garlic, Minced"]
[null,null,null,null,null,null,null,null,null,null,null,null,null,null,null,null,null,null,null,null,null,null,null,null,{"$f":"MultiplierFormula","v":1},"Shish Kebabs",1,"lb","Steak, Chicken or Pork"]
[null,null,null,null,null,null,null,null,null,null,null,null,null,null,null,null,null,null,null,null,null,null,null,null,{"$f":"MultiplierFormula","v":1},"Shish Kebabs",1,"sm","Onion"]
[null,null,null,null,null,null,null,null,null,null,null,null,null,null,null,null,null,null,null,null,null,null,null,null,{"$f":"MultiplierFormula","v":1},"Shish Kebabs",2,"pepper","Bell Peppers"]
[null,null,null,null,null,null,null,null,null,null,null,null,null,null,null,null,null,null,null,null,null,null,null,null,{"$f":"MultiplierFormula","v":1},"Shish Kebabs",1,"8 oz pkg","Whole Mushrooms"]
[null,null,null,null,null,null,null,null,null,null,null,null,null,null,null,null,null,null,null,null,null,null,null,null,{"$f":"MultiplierFormula","v":1},"Shish Kebabs",1,"pt","Cherry Tomatoes"]
[null,null,null,null,null,null,null,null,null,null,null,null,null,null,null,null,null,null,null,null,null,null,null,null,{"$f":"MultiplierFormula","v":1},"Shish Kebabs",1,"can","Pineapple Chunks, Drained"]
[null,null,null,null,null,null,null,null,null,null,null,null,null,null,null,null,null,null,null,null,null,null,null,null,{"$f":"MultiplierFormula","v":1},"Sticky White Rice",1,"cups","Uncooked White Rice"]
[null,null,null,null,null,null,null,null,null,null,null,null,null,null,null,null,null,null,null,null,null,null,null,null,{"$f":"MultiplierFormula","v":1},"Sticky White Rice",0.5,"T","Butter"]
[null,null,null,null,null,null,null,null,null,null,null,null,null,null,null,null,null,null,null,null,null,null,null,null,{"$f":"MultiplierFormula","v":1},"Grilled Melon with Honey-Mint Sauce",1,"cantaloupe","Cantaloupe"]
[null,null,null,null,null,null,null,null,null,null,null,null,null,null,null,null,null,null,null,null,null,null,null,null,{"$f":"MultiplierFormula","v":1},"Grilled Melon with Honey-Mint Sauce",0.25,"cups","Honey"]
[null,null,null,null,null,null,null,null,null,null,null,null,null,null,null,null,null,null,null,null,null,null,null,null,{"$f":"MultiplierFormula","v":1},"Grilled Melon with Honey-Mint Sauce",0.25,"cups","Fresh Mint Leaves, Loosely Packed"]
[null,null,null,null,null,null,null,null,null,null,null,null,null,null,null,null,null,null,null,null,null,null,null,null,{"$f":"MultiplierFormula","v":1},"Grilled Melon with Honey-Mint Sauce",0.25,"cups","Water"]
[null,null,null,null,null,null,null,null,null,null,null,null,null,null,null,null,null,null,null,null,null,null,null,null,{"$f":"MultiplierFormula","v":1},"Grilled Melon with Honey-Mint Sauce",1,"pt","Ice Cream (Optional)"]
[null,null,null,null,null,null,null,null,null,null,null,null,null,null,null,null,null,null,null,null,null,null,null,null,{"$f":"MultiplierFormula","v":1},"Brown Sugar & Spice Rubbed Baby Back Ribs",4,"racks","Pork Baby Back Ribs (1 1/4 Lbs.)"]
[null,null,null,null,null,null,null,null,null,null,null,null,null,null,null,null,null,null,null,null,null,null,null,null,{"$f":"MultiplierFormula","v":1},"Brown Sugar & Spice Rubbed Baby Back Ribs",1,"16 oz bottle","Italian Dressing"]
[null,null,null,null,null,null,null,null,null,null,null,null,null,null,null,null,null,null,null,null,null,null,null,null,{"$f":"MultiplierFormula","v":1},"Brown Sugar & Spice Rubbed Baby Back Ribs",6,"tsp","Garlic Powder"]
[null,null,null,null,null,null,null,null,null,null,null,null,null,null,null,null,null,null,null,null,null,null,null,null,{"$f":"MultiplierFormula","v":1},"Brown Sugar & Spice Rubbed Baby Back Ribs",6,"tsp","Chili Powder"]
[null,null,null,null,null,null,null,null,null,null,null,null,null,null,null,null,null,null,null,null,null,null,null,null,{"$f":"MultiplierFormula","v":1},"Brown Sugar & Spice Rubbed Baby Back Ribs",4,"tsp","Dark Brown Sugar"]
[null,null,null,null,null,null,null,null,null,null,null,null,null,null,null,null,null,null,null,null,null,null,null,null,{"$f":"MultiplierFormula","v":1},"Brown Sugar & Spice Rubbed Baby Back Ribs",1,"bottle","BBQ Sauce Of Choice"]
[null,null,null,null,null,null,null,null,null,null,null,null,null,null,null,null,null,null,null,null,null,null,null,null,{"$f":"MultiplierFormula","v":1},"Seasoned French Fries",1,"bag","Seasoned French Fries"]
[null,null,null,null,null,null,null,null,null,null,null,null,null,null,null,null,null,null,null,null,null,null,null,null,{"$f":"MultiplierFormula","v":{"$error":"#N/A"}},"Coleslaw",1,"container","Coleslaw"]
[null,null,null,null,null,null,null,null,null,null,null,null,null,null,null,null,null,null,null,null,null,null,null,null,{"$f":"MultiplierFormula","v":1},"Beef and Mushroom Skillet Supper ",1,"T","Olive Oil"]
[null,null,null,null,null,null,null,null,null,null,null,null,null,null,null,null,null,null,null,null,null,null,null,null,{"$f":"MultiplierFormula","v":1},"Beef and Mushroom Skillet Supper ",1.5,"lb","Ground Beef"]
[null,null,null,null,null,null,null,null,null,null,null,null,null,null,null,null,null,null,null,null,null,null,null,null,{"$f":"MultiplierFormula","v":1},"Beef and Mushroom Skillet Supper ",8,"large","Portobello Mushrooms"]
[null,null,null,null,null,null,null,null,null,null,null,null,null,null,null,null,null,null,null,null,null,null,null,null,{"$f":"MultiplierFormula","v":1},"Beef and Mushroom Skillet Supper ",1,"sm","Onion"]
[null,null,null,null,null,null,null,null,null,null,null,null,null,null,null,null,null,null,null,null,null,null,null,null,{"$f":"MultiplierFormula","v":1},"Beef and Mushroom Skillet Supper ",2,"can","Cream of Mushroom Soup"]
[null,null,null,null,null,null,null,null,null,null,null,null,null,null,null,null,null,null,null,null,null,null,null,null,{"$f":"MultiplierFormula","v":1},"Beef and Mushroom Skillet Supper ",2,"tsp","Worcestershire Sauce"]
[null,null,null,null,null,null,null,null,null,null,null,null,null,null,null,null,null,null,null,null,null,null,null,null,{"$f":"MultiplierFormula","v":1},"Beef and Mushroom Skillet Supper ",4,"oz","Sour Cream"]
[null,null,null,null,null,null,null,null,null,null,null,null,null,null,null,null,null,null,null,null,null,null,null,null,{"$f":"MultiplierFormula","v":1},"Beef and Mushroom Skillet Supper ",1,"bag","Egg Noodles"]
[null,null,null,null,null,null,null,null,null,null,null,null,null,null,null,null,null,null,null,null,null,null,null,null,{"$f":"MultiplierFormula","v":1},"Beef and Mushroom Skillet Supper ",2,"crown","Broccoli"]
[null,null,null,null,null,null,null,null,null,null,null,null,null,null,null,null,null,null,null,null,null,null,null,null,{"$f":"MultiplierFormula","v":{"$error":"#N/A"}},"Shrimp Fettuccini Pasta",0.5,"lb","Fettuccini Pasta"]
[null,null,null,null,null,null,null,null,null,null,null,null,null,null,null,null,null,null,null,null,null,null,null,null,{"$f":"MultiplierFormula","v":{"$error":"#N/A"}},"Shrimp Fettuccini Pasta","1 T","T","Butter"]
[null,null,null,null,null,null,null,null,null,null,null,null,null,null,null,null,null,null,null,null,null,null,null,null,{"$f":"MultiplierFormula","v":{"$error":"#N/A"}},"Shrimp Fettuccini Pasta",0.5,"lb","Cooked Shrimp"]
[null,null,null,null,null,null,null,null,null,null,null,null,null,null,null,null,null,null,null,null,null,null,null,null,{"$f":"MultiplierFormula","v":{"$error":"#N/A"}},"Shrimp Fettuccini Pasta",1,"cups","Half And Half"]
[null,null,null,null,null,null,null,null,null,null,null,null,null,null,null,null,null,null,null,null,null,null,null,null,{"$f":"MultiplierFormula","v":{"$error":"#N/A"}},"Shrimp Fettuccini Pasta",6,"T","Grated Parmesan Cheese"]
[null,null,null,null,null,null,null,null,null,null,null,null,null,null,null,null,null,null,null,null,null,null,null,null,{"$f":"MultiplierFormula","v":1},"Berries & Lemon Curd",1,"pkg","Black Berries"]
[null,null,null,null,null,null,null,null,null,null,null,null,null,null,null,null,null,null,null,null,null,null,null,null,{"$f":"MultiplierFormula","v":1},"Berries & Lemon Curd",1,"pkg","Strawberries"]
[null,null,null,null,null,null,null,null,null,null,null,null,null,null,null,null,null,null,null,null,null,null,null,null,{"$f":"MultiplierFormula","v":1},"Berries & Lemon Curd",1,"jar","Lemon Curd"]
[null,null,null,null,null,null,null,null,null,null,null,null,null,null,null,null,null,null,null,null,null,null,null,null,{"$f":"MultiplierFormula","v":1},"Nachos Grande",1,"lb","Ground Beef"]
[null,null,null,null,null,null,null,null,null,null,null,null,null,null,null,null,null,null,null,null,null,null,null,null,{"$f":"MultiplierFormula","v":1},"Nachos Grande",0.25,"cups","Finely Chopped Onion"]
[null,null,null,null,null,null,null,null,null,null,null,null,null,null,null,null,null,null,null,null,null,null,null,null,{"$f":"MultiplierFormula","v":1},"Nachos Grande",1,"1.25 oz packet","Taco Seasoning"]
[null,null,null,null,null,null,null,null,null,null,null,null,null,null,null,null,null,null,null,null,null,null,null,null,{"$f":"MultiplierFormula","v":1},"Nachos Grande",0.5,"16 oz can","Refried Beans or Black Beans"]
[null,null,null,null,null,null,null,null,null,null,null,null,null,null,null,null,null,null,null,null,null,null,null,null,{"$f":"MultiplierFormula","v":1},"Nachos Grande",1,"9 oz bag","Corn Chips"]
[null,null,null,null,null,null,null,null,null,null,null,null,null,null,null,null,null,null,null,null,null,null,null,null,{"$f":"MultiplierFormula","v":1},"Nachos Grande",4,"cups","Cheese, Shredded"]
[null,null,null,null,null,null,null,null,null,null,null,null,null,null,null,null,null,null,null,null,null,null,null,null,{"$f":"MultiplierFormula","v":1},"Nachos Grande",1,"cups","Sour Cream"]
[null,null,null,null,null,null,null,null,null,null,null,null,null,null,null,null,null,null,null,null,null,null,null,null,{"$f":"MultiplierFormula","v":1},"Nachos Grande",1.5,"cups","Salsa"]
[null,null,null,null,null,null,null,null,null,null,null,null,null,null,null,null,null,null,null,null,null,null,null,null,{"$f":"MultiplierFormula","v":1},"Nachos Grande",0.5,"cups","Corn, Heated"]
[null,null,null,null,null,null,null,null,null,null,null,null,null,null,null,null,null,null,null,null,null,null,null,null,{"$f":"MultiplierFormula","v":1},"Nachos Grande",0.5,"pepper","Green Pepper, Diced"]
[null,null,null,null,null,null,null,null,null,null,null,null,null,null,null,null,null,null,null,null,null,null,null,null,{"$f":"MultiplierFormula","v":1},"Nachos Grande",1,"avocado","Avocado, Diced"]
[null,null,null,null,null,null,null,null,null,null,null,null,null,null,null,null,null,null,null,null,null,null,null,null,{"$f":"MultiplierFormula","v":1},"Nachos Grande",2,"3 oz can","Sliced Black Olives"]